[Event "Late-Titled-Tuesday-Blitz-April-02-2024"]
[Site "Chess.com"]
[Date "2024.04.02"]
[Round "1"]
[White "sergiochess83"]
[Black "best926"]
[Result "1-0"]
[WhiteElo "2972"]
[BlackElo "2511"]
[TimeControl "180+1"]
[EndTime "14:06:11 PDT"]
[Termination "sergiochess83 won by resignation"]

1. d4 {[%clk 0:02:54.4]} 1... d5 {[%clk 0:03:00.4]} 2. c4 {[%clk 0:02:53.8]}
2... e6 {[%clk 0:03:01.1]} 3. Nc3 {[%clk 0:02:53.5]} 3... a6 {[%clk 0:03:01.4]}
4. cxd5 {[%clk 0:02:41.7]} 4... exd5 {[%clk 0:03:02.3]} 5. Nf3 {[%clk
0:02:39.2]} 5... h6 {[%clk 0:03:02.7]} 6. Bf4 {[%clk 0:02:37.1]} 6... Nf6 {[%clk
0:03:02.5]} 7. e3 {[%clk 0:02:36.6]} 7... Bd6 {[%clk 0:03:03]} 8. Bg3 {[%clk
0:02:32.8]} 8... Bxg3 {[%clk 0:03:01.6]} 9. hxg3 {[%clk 0:02:32.6]} 9... O-O
{[%clk 0:03:02.5]} 10. Bd3 {[%clk 0:02:32.2]} 10... Qe7 {[%clk 0:03:01.9]} 11.
Qc2 {[%clk 0:02:28.3]} 11... Re8 {[%clk 0:02:57.1]} 12. O-O-O {[%clk 0:02:19.5]}
12... b5 {[%clk 0:02:48]} 13. Kb1 {[%clk 0:02:13.9]} 13... Nbd7 {[%clk
0:02:28.8]} 14. Rh4 {[%clk 0:02:09.9]} 14... c5 {[%clk 0:02:26.5]} 15. dxc5
{[%clk 0:02:07.7]} 15... Nxc5 {[%clk 0:02:27.4]} 16. Nxd5 {[%clk 0:01:55.7]}
16... Nxd5 {[%clk 0:01:45.1]} 17. Bh7+ {[%clk 0:01:54.5]} 17... Kh8 {[%clk
0:01:45.6]} 18. Rxd5 {[%clk 0:01:55.1]} 18... Ne6 {[%clk 0:01:46]} 19. Ne5
{[%clk 0:01:43.3]} 19... Bb7 {[%clk 0:01:40.3]} 20. Rd7 {[%clk 0:01:42.5]} 20...
Qxd7 {[%clk 0:01:29.7]} 21. Nxd7 {[%clk 0:01:41.3]} 21... Rac8 {[%clk
0:01:30.6]} 22. Qd3 {[%clk 0:01:09.7]} 22... Rc7 {[%clk 0:00:26.9]} 23. Bf5
{[%clk 0:01:05.9]} 23... Rd8 {[%clk 0:00:19.3]} 24. Bxe6 {[%clk 0:01:04.2]}
24... fxe6 {[%clk 0:00:20.2]} 25. Rxh6+ {[%clk 0:00:55.9]} 25... gxh6 {[%clk
0:00:12]} 26. Qd4+ {[%clk 0:00:56.3]} 26... Kg8 {[%clk 0:00:07.8]} 27. Nf6+
{[%clk 0:00:55.9]} 27... Kf7 {[%clk 0:00:08.4]} 28. Qxd8 {[%clk 0:00:56]} 28...
Be4+ {[%clk 0:00:08.8]} 29. Nxe4 {[%clk 0:00:55.9]} 1-0

[Event "Late-Titled-Tuesday-Blitz-April-02-2024"]
[Site "Chess.com"]
[Date "2024.04.02"]
[Round "1"]
[White "Blackwhite017"]
[Black "VanRommel28"]
[Result "0-1"]
[WhiteElo "2075"]
[BlackElo "2562"]
[TimeControl "180+1"]
[EndTime "14:06:11 PDT"]
[Termination "VanRommel28 won on time"]

1. e4 {[%clk 0:02:57.2]} 1... g6 {[%clk 0:03:00.2]} 2. d4 {[%clk 0:02:56.4]}
2... Bg7 {[%clk 0:03:00.9]} 3. Nf3 {[%clk 0:02:56.4]} 3... d6 {[%clk 0:03:01.5]}
4. Bc4 {[%clk 0:02:54.7]} 4... e6 {[%clk 0:02:53.7]} 5. O-O {[%clk 0:02:52.8]}
5... Ne7 {[%clk 0:02:53.4]} 6. c3 {[%clk 0:02:52.3]} 6... O-O {[%clk 0:02:53.1]}
7. Re1 {[%clk 0:02:45.5]} 7... b6 {[%clk 0:02:50.9]} 8. Bg5 {[%clk 0:02:37.8]}
8... h6 {[%clk 0:02:50.6]} 9. Bh4 {[%clk 0:02:37.8]} 9... Bb7 {[%clk 0:02:49.2]}
10. Nbd2 {[%clk 0:02:37.2]} 10... Nd7 {[%clk 0:02:49]} 11. a4 {[%clk 0:02:29.2]}
11... a6 {[%clk 0:02:48.7]} 12. Qc2 {[%clk 0:02:21.3]} 12... c5 {[%clk
0:02:28.4]} 13. d5 {[%clk 0:02:04.8]} 13... e5 {[%clk 0:02:09.8]} 14. Bxe7
{[%clk 0:01:50.8]} 14... Qxe7 {[%clk 0:02:09.1]} 15. Nf1 {[%clk 0:01:31.6]}
15... Bc8 {[%clk 0:02:01.3]} 16. b4 {[%clk 0:01:26.9]} 16... f5 {[%clk
0:01:55.5]} 17. exf5 {[%clk 0:01:14.7]} 17... gxf5 {[%clk 0:01:56.4]} 18. Ng3
{[%clk 0:00:58.4]} 18... Qf7 {[%clk 0:01:56.6]} 19. Nh4 {[%clk 0:00:12.5]} 19...
Nb8 {[%clk 0:01:25.5]} 20. bxc5 {[%clk 0:00:12]} 20... bxc5 {[%clk 0:01:25.5]}
21. Bd3 {[%clk 0:00:10.9]} 21... e4 {[%clk 0:01:24.5]} 22. Be2 {[%clk
0:00:09.4]} 22... Qf6 {[%clk 0:01:12.7]} 23. Nxe4 {[%clk 0:00:03.3]} 23... Qxh4
{[%clk 0:01:09.4]} 24. Nxd6 {[%clk 0:00:02.5]} 24... Be5 {[%clk 0:01:09.9]} 25.
g3 {[%clk 0:00:01.7]} 25... Qf6 {[%clk 0:01:07.9]} 26. Nxc8 {[%clk 0:00:01.8]}
26... Rxc8 {[%clk 0:01:08.8]} 27. Bf3 {[%clk 0:00:01.6]} 27... Nd7 {[%clk
0:01:07.2]} 28. d6 {[%clk 0:00:01.1]} 28... Rab8 {[%clk 0:01:07.8]} 0-1

[Event "Late-Titled-Tuesday-Blitz-April-02-2024"]
[Site "Chess.com"]
[Date "2024.04.02"]
[Round "1"]
[White "protectiago"]
[Black "anasta10"]
[Result "0-1"]
[WhiteElo "2062"]
[BlackElo "2559"]
[TimeControl "180+1"]
[EndTime "14:06:11 PDT"]
[Termination "anasta10 won by resignation"]

1. d4 {[%clk 0:02:57.7]} 1... Nf6 {[%clk 0:02:59.3]} 2. c4 {[%clk 0:02:55.5]}
2... c5 {[%clk 0:02:59.4]} 3. d5 {[%clk 0:02:55]} 3... d6 {[%clk 0:02:59.2]} 4.
Nc3 {[%clk 0:02:49.1]} 4... g6 {[%clk 0:02:59.5]} 5. g3 {[%clk 0:02:19.2]} 5...
Bg7 {[%clk 0:02:58.2]} 6. Bg2 {[%clk 0:02:19.3]} 6... O-O {[%clk 0:02:59]} 7.
Nf3 {[%clk 0:02:19.3]} 7... e6 {[%clk 0:02:58.8]} 8. O-O {[%clk 0:02:17.8]} 8...
exd5 {[%clk 0:02:58.3]} 9. cxd5 {[%clk 0:02:17.7]} 9... Re8 {[%clk 0:02:58.8]}
10. Nd2 {[%clk 0:02:07.2]} 10... Bg4 {[%clk 0:02:58]} 11. Re1 {[%clk 0:02:05.8]}
11... Na6 {[%clk 0:02:49.5]} 12. Nc4 {[%clk 0:02:00.4]} 12... Nc7 {[%clk
0:02:49.4]} 13. a4 {[%clk 0:01:57.7]} 13... b6 {[%clk 0:02:42]} 14. Nxd6 {[%clk
0:01:51]} 14... Qxd6 {[%clk 0:02:41.1]} 15. Bf4 {[%clk 0:01:50.9]} 15... Qd7
{[%clk 0:02:30.5]} 16. d6 {[%clk 0:01:50]} 16... Ne6 {[%clk 0:02:23.9]} 17. Bxa8
{[%clk 0:01:44.7]} 17... Rxa8 {[%clk 0:02:24.8]} 18. Be5 {[%clk 0:01:30.7]}
18... Rd8 {[%clk 0:02:17.4]} 19. Qd2 {[%clk 0:01:21.3]} 19... Nd4 {[%clk
0:01:47.9]} 20. Bxd4 {[%clk 0:01:11.1]} 20... cxd4 {[%clk 0:01:48.8]} 21. Nb5
{[%clk 0:00:59.5]} 21... a6 {[%clk 0:01:39.4]} 22. Nxd4 {[%clk 0:00:58.5]} 22...
Qxd6 {[%clk 0:01:39.5]} 23. e3 {[%clk 0:00:58.1]} 23... Ne4 {[%clk 0:01:34.3]}
24. Qd3 {[%clk 0:00:46.9]} 24... Ng5 {[%clk 0:01:33.2]} 25. Ra3 {[%clk
0:00:39.9]} 25... Nf3+ {[%clk 0:01:25.7]} 26. Nxf3 {[%clk 0:00:36]} 26... Qxd3
{[%clk 0:01:24.9]} 27. Rxd3 {[%clk 0:00:36.3]} 27... Rxd3 {[%clk 0:01:25.4]} 28.
Nd4 {[%clk 0:00:31.3]} 28... Bxd4 {[%clk 0:01:24.9]} 29. exd4 {[%clk 0:00:31.8]}
29... Rxd4 {[%clk 0:01:25.7]} 30. Kg2 {[%clk 0:00:32.2]} 30... Rxa4 {[%clk
0:01:24.9]} 31. h3 {[%clk 0:00:31.5]} 31... Be6 {[%clk 0:01:24.6]} 32. Re2
{[%clk 0:00:31.3]} 32... Rb4 {[%clk 0:01:24.5]} 33. Rd2 {[%clk 0:00:31.6]} 33...
a5 {[%clk 0:01:25]} 34. g4 {[%clk 0:00:31.5]} 34... Kg7 {[%clk 0:01:25.6]} 35.
Kg3 {[%clk 0:00:31.9]} 35... Rb3+ {[%clk 0:01:25.1]} 36. f3 {[%clk 0:00:31.8]}
36... a4 {[%clk 0:01:25.7]} 37. Kf4 {[%clk 0:00:31.4]} 37... b5 {[%clk
0:01:26.1]} 38. h4 {[%clk 0:00:30.8]} 38... h6 {[%clk 0:01:25.6]} 39. h5 {[%clk
0:00:29.3]} 39... gxh5 {[%clk 0:01:24.6]} 40. gxh5 {[%clk 0:00:29.8]} 40... Kf6
{[%clk 0:01:25]} 41. Ke4 {[%clk 0:00:28.6]} 41... b4 {[%clk 0:01:24.1]} 42. f4
{[%clk 0:00:28.2]} 42... a3 {[%clk 0:01:23.9]} 43. bxa3 {[%clk 0:00:28]} 43...
bxa3 {[%clk 0:01:24.8]} 44. Re2 {[%clk 0:00:27.2]} 44... Rb2 {[%clk 0:01:24]}
45. Re3 {[%clk 0:00:26.7]} 45... a2 {[%clk 0:01:24.1]} 46. Ra3 {[%clk
0:00:26.9]} 46... Rb1 {[%clk 0:01:23.2]} 0-1

[Event "Late-Titled-Tuesday-Blitz-April-02-2024"]
[Site "Chess.com"]
[Date "2024.04.02"]
[Round "1"]
[White "fmcabralis"]
[Black "Korchmar_Vasiliy"]
[Result "0-1"]
[WhiteElo "2416"]
[BlackElo "2738"]
[TimeControl "180+1"]
[EndTime "14:06:12 PDT"]
[Termination "Korchmar_Vasiliy won by resignation"]

1. e4 {[%clk 0:03:00.9]} 1... c5 {[%clk 0:02:59.5]} 2. Nf3 {[%clk 0:03:01.1]}
2... d6 {[%clk 0:03:00]} 3. d4 {[%clk 0:03:01.6]} 3... cxd4 {[%clk 0:03:00.9]}
4. Nxd4 {[%clk 0:03:02.4]} 4... Nf6 {[%clk 0:03:01.2]} 5. Nc3 {[%clk 0:03:03.1]}
5... Nc6 {[%clk 0:03:01.8]} 6. Bg5 {[%clk 0:02:59.9]} 6... Bd7 {[%clk
0:03:01.6]} 7. Qd2 {[%clk 0:02:58.3]} 7... a6 {[%clk 0:03:01.6]} 8. O-O-O {[%clk
0:02:58.4]} 8... e6 {[%clk 0:03:01.9]} 9. f4 {[%clk 0:02:53.4]} 9... Be7 {[%clk
0:03:01.4]} 10. Kb1 {[%clk 0:02:43.7]} 10... b5 {[%clk 0:02:59.7]} 11. Nxc6
{[%clk 0:02:00.9]} 11... Bxc6 {[%clk 0:03:00.6]} 12. Bxf6 {[%clk 0:02:01.1]}
12... gxf6 {[%clk 0:02:59.9]} 13. Bd3 {[%clk 0:01:59.6]} 13... Qb6 {[%clk
0:02:59.2]} 14. e5 {[%clk 0:01:52.1]} 14... fxe5 {[%clk 0:02:49.2]} 15. fxe5
{[%clk 0:01:51.8]} 15... dxe5 {[%clk 0:02:50.1]} 16. Be4 {[%clk 0:01:43.2]}
16... b4 {[%clk 0:02:31]} 17. Bxc6+ {[%clk 0:01:36.2]} 17... Qxc6 {[%clk
0:02:31.2]} 18. Ne2 {[%clk 0:01:33.3]} 18... Rc8 {[%clk 0:02:17.8]} 19. Rc1
{[%clk 0:01:26.3]} 19... Rg8 {[%clk 0:02:07.7]} 20. h4 {[%clk 0:01:16.6]} 20...
Rxg2 {[%clk 0:02:06]} 21. Rhg1 {[%clk 0:01:05.1]} 21... Rd8 {[%clk 0:01:42.1]}
22. Qe1 {[%clk 0:00:20.1]} 22... f5 {[%clk 0:01:42.2]} 23. Rxg2 {[%clk
0:00:11.7]} 23... Qxg2 {[%clk 0:01:43.1]} 24. Ng1 {[%clk 0:00:10.9]} 24... Qe4
{[%clk 0:01:35.5]} 25. Qxe4 {[%clk 0:00:10.1]} 25... fxe4 {[%clk 0:01:35.5]} 26.
b3 {[%clk 0:00:08]} 26... Bxh4 {[%clk 0:01:35.6]} 27. Nh3 {[%clk 0:00:06.9]}
27... e3 {[%clk 0:01:32.2]} 28. Ng1 {[%clk 0:00:06]} 28... Rd2 {[%clk
0:01:32.5]} 29. Nf3 {[%clk 0:00:06.1]} 29... Bg3 {[%clk 0:01:22.4]} 30. Nxd2
{[%clk 0:00:06]} 30... exd2 {[%clk 0:01:23.3]} 31. Rd1 {[%clk 0:00:06.6]} 31...
Be1 {[%clk 0:01:14.2]} 32. c3 {[%clk 0:00:05.4]} 32... h5 {[%clk 0:01:11.2]} 33.
Kc2 {[%clk 0:00:02.8]} 33... h4 {[%clk 0:01:11.7]} 34. cxb4 {[%clk 0:00:03]}
34... h3 {[%clk 0:01:11.9]} 35. Kd3 {[%clk 0:00:03.5]} 35... h2 {[%clk 0:01:12]}
0-1

[Event "Late-Titled-Tuesday-Blitz-April-02-2024"]
[Site "Chess.com"]
[Date "2024.04.02"]
[Round "1"]
[White "Josetricks"]
[Black "Darkdefense15"]
[Result "1-0"]
[WhiteElo "2666"]
[BlackElo "2373"]
[TimeControl "180+1"]
[EndTime "14:06:17 PDT"]
[Termination "Josetricks won by checkmate"]

1. d4 {[%clk 0:03:00]} 1... Nf6 {[%clk 0:02:57.6]} 2. Nc3 {[%clk 0:03:00.3]}
2... d5 {[%clk 0:02:57.2]} 3. Bf4 {[%clk 0:02:59.9]} 3... c5 {[%clk 0:02:57]} 4.
e3 {[%clk 0:02:59.6]} 4... cxd4 {[%clk 0:02:56.8]} 5. exd4 {[%clk 0:03:00.5]}
5... a6 {[%clk 0:02:57]} 6. Nf3 {[%clk 0:03:00.5]} 6... Nc6 {[%clk 0:02:56.5]}
7. Bd3 {[%clk 0:03:00.2]} 7... Bg4 {[%clk 0:02:56.5]} 8. Be3 {[%clk 0:02:52]}
8... e6 {[%clk 0:02:53.3]} 9. O-O {[%clk 0:02:50.7]} 9... Bd6 {[%clk 0:02:52.5]}
10. h3 {[%clk 0:02:50.6]} 10... Bh5 {[%clk 0:02:52.6]} 11. Be2 {[%clk
0:02:44.7]} 11... O-O {[%clk 0:02:47.1]} 12. Qd2 {[%clk 0:02:44.7]} 12... b5
{[%clk 0:02:43.3]} 13. Ne1 {[%clk 0:02:38.5]} 13... Bxe2 {[%clk 0:02:40.5]} 14.
Nxe2 {[%clk 0:02:39.4]} 14... Ne4 {[%clk 0:02:39.6]} 15. Qd1 {[%clk 0:02:36.6]}
15... f5 {[%clk 0:02:30.6]} 16. f3 {[%clk 0:02:31]} 16... Nf6 {[%clk 0:02:27.5]}
17. Nd3 {[%clk 0:02:04]} 17... Nh5 {[%clk 0:02:20.1]} 18. c3 {[%clk 0:01:58.5]}
18... f4 {[%clk 0:02:12.8]} 19. Bf2 {[%clk 0:01:57]} 19... Ne7 {[%clk 0:02:13]}
20. Bh4 {[%clk 0:01:52.8]} 20... Qe8 {[%clk 0:02:11.4]} 21. Bxe7 {[%clk
0:01:48.8]} 21... Qxe7 {[%clk 0:02:11.8]} 22. a4 {[%clk 0:01:47]} 22... Qg5
{[%clk 0:02:09.7]} 23. axb5 {[%clk 0:01:44.6]} 23... axb5 {[%clk 0:02:10.6]} 24.
Qb3 {[%clk 0:01:40.7]} 24... Ng3 {[%clk 0:02:06.3]} 25. Nxg3 {[%clk 0:01:37.1]}
25... fxg3 {[%clk 0:02:07.2]} 26. Rxa8 {[%clk 0:01:33]} 26... Qe3+ {[%clk
0:02:01.4]} 27. Kh1 {[%clk 0:01:30.7]} 27... Rxa8 {[%clk 0:02:01.5]} 28. Qxb5
{[%clk 0:01:29.9]} 28... Rb8 {[%clk 0:01:58]} 29. Qa6 {[%clk 0:01:26.5]} 29...
Qe2 {[%clk 0:01:53.9]} 30. Re1 {[%clk 0:01:24.5]} 30... Qd2 {[%clk 0:01:41.2]}
31. Qxd6 {[%clk 0:01:22.8]} 31... Ra8 {[%clk 0:01:39.4]} 32. Qxe6+ {[%clk
0:01:21]} 32... Kf8 {[%clk 0:01:39.7]} 33. Nc5 {[%clk 0:01:17.1]} 33... g6
{[%clk 0:01:36.7]} 34. Qd6+ {[%clk 0:01:01.1]} 34... Kg7 {[%clk 0:01:34.9]} 35.
Ne6+ {[%clk 0:00:58.7]} 35... Kg8 {[%clk 0:01:33.5]} 36. Qe5 {[%clk 0:00:50.3]}
36... Kf7 {[%clk 0:01:24.6]} 37. Ng5+ {[%clk 0:00:48]} 37... Kg8 {[%clk
0:01:24.7]} 38. Qe6+ {[%clk 0:00:47.2]} 38... Kg7 {[%clk 0:01:25.1]} 39. Qe7+
{[%clk 0:00:45.6]} 39... Kh6 {[%clk 0:01:25.2]} 40. Nf7+ {[%clk 0:00:45.7]}
40... Kg7 {[%clk 0:01:25]} 41. Ne5+ {[%clk 0:00:40.8]} 41... Kh8 {[%clk
0:01:03.2]} 42. Ng4 {[%clk 0:00:29.8]} 42... Ra7 {[%clk 0:00:57.9]} 43. Qf8#
{[%clk 0:00:28.8]} 1-0

[Event "Late-Titled-Tuesday-Blitz-April-02-2024"]
[Site "Chess.com"]
[Date "2024.04.02"]
[Round "1"]
[White "olga-belka"]
[Black "djano"]
[Result "0-1"]
[WhiteElo "2361"]
[BlackElo "2658"]
[TimeControl "180+1"]
[EndTime "14:06:17 PDT"]
[Termination "djano won by resignation"]

1. e4 {[%clk 0:02:59.4]} 1... c5 {[%clk 0:02:59.5]} 2. Nf3 {[%clk 0:02:59.1]}
2... g6 {[%clk 0:03:00]} 3. g3 {[%clk 0:02:57.6]} 3... Bg7 {[%clk 0:02:59.7]} 4.
Bg2 {[%clk 0:02:57.5]} 4... Nc6 {[%clk 0:03:00.3]} 5. O-O {[%clk 0:02:56.6]}
5... d6 {[%clk 0:03:00.8]} 6. h3 {[%clk 0:02:56.3]} 6... Nf6 {[%clk 0:02:58.8]}
7. Re1 {[%clk 0:02:56.2]} 7... O-O {[%clk 0:02:58.7]} 8. c3 {[%clk 0:02:56.1]}
8... e5 {[%clk 0:02:58.7]} 9. d4 {[%clk 0:02:55.4]} 9... cxd4 {[%clk 0:02:59.6]}
10. cxd4 {[%clk 0:02:54.5]} 10... exd4 {[%clk 0:02:59.6]} 11. Nxd4 {[%clk
0:02:47.7]} 11... Nxd4 {[%clk 0:02:51.9]} 12. Qxd4 {[%clk 0:02:45.9]} 12... Be6
{[%clk 0:02:48.7]} 13. Nc3 {[%clk 0:02:44.4]} 13... Nd5 {[%clk 0:02:44.7]} 14.
Qd3 {[%clk 0:02:39.2]} 14... Nxc3 {[%clk 0:02:40.1]} 15. bxc3 {[%clk 0:02:39]}
15... Rc8 {[%clk 0:02:37.6]} 16. Bd2 {[%clk 0:02:33.9]} 16... Qa5 {[%clk
0:02:37.6]} 17. Rab1 {[%clk 0:02:22.9]} 17... b6 {[%clk 0:02:32.1]} 18. Bf4
{[%clk 0:02:15.4]} 18... Bxc3 {[%clk 0:02:24.5]} 19. Rec1 {[%clk 0:02:08.9]}
19... Be5 {[%clk 0:02:19.4]} 20. Rxc8 {[%clk 0:01:52.2]} 20... Rxc8 {[%clk
0:02:17.5]} 21. Rb5 {[%clk 0:01:47.7]} 21... Qxa2 {[%clk 0:02:08.3]} 22. Bxe5
{[%clk 0:01:47.1]} 22... Bc4 {[%clk 0:02:08.4]} 23. Qc3 {[%clk 0:01:40.7]} 23...
Be6 {[%clk 0:01:48]} 24. Qb2 {[%clk 0:01:23.1]} 24... dxe5 {[%clk 0:01:44.3]}
25. Qxe5 {[%clk 0:01:21]} 25... Qe2 {[%clk 0:01:27.3]} 26. Rb1 {[%clk
0:01:12.2]} 26... h5 {[%clk 0:01:25.1]} 27. Bf1 {[%clk 0:01:07]} 27... Qc2
{[%clk 0:01:20.3]} 28. Ra1 {[%clk 0:01:01.5]} 28... a5 {[%clk 0:01:18.5]} 29.
Qd4 {[%clk 0:00:56]} 29... Qc3 {[%clk 0:01:12.1]} 30. Qd1 {[%clk 0:00:49]} 30...
Bb3 {[%clk 0:01:04.4]} 31. Qb1 {[%clk 0:00:37.1]} 31... Bc2 {[%clk 0:01:03.3]}
32. Qa2 {[%clk 0:00:33.5]} 32... Bxe4 {[%clk 0:01:00]} 33. Rd1 {[%clk
0:00:24.1]} 33... Qf3 {[%clk 0:00:58.2]} 0-1

[Event "Late-Titled-Tuesday-Blitz-April-02-2024"]
[Site "Chess.com"]
[Date "2024.04.02"]
[Round "1"]
[White "UK_23"]
[Black "Rashad_Zeynalli"]
[Result "1/2-1/2"]
[WhiteElo "2402"]
[BlackElo "2687"]
[TimeControl "180+1"]
[EndTime "14:06:21 PDT"]
[Termination "Game drawn by repetition"]

1. e4 {[%clk 0:02:40.8]} 1... e5 {[%clk 0:02:58.8]} 2. Nf3 {[%clk 0:02:41]} 2...
Nc6 {[%clk 0:02:58.9]} 3. d4 {[%clk 0:02:41.6]} 3... exd4 {[%clk 0:02:59.7]} 4.
Nxd4 {[%clk 0:02:42.5]} 4... Qf6 {[%clk 0:02:59.8]} 5. Nf3 {[%clk 0:02:42.8]}
5... Qg6 {[%clk 0:02:57.5]} 6. Bd3 {[%clk 0:02:33.6]} 6... Qxg2 {[%clk
0:02:51.4]} 7. Rg1 {[%clk 0:02:33.5]} 7... Qh3 {[%clk 0:02:52]} 8. Nc3 {[%clk
0:02:27]} 8... Bb4 {[%clk 0:02:47.4]} 9. Bd2 {[%clk 0:02:22.3]} 9... d6 {[%clk
0:02:34.3]} 10. Rxg7 {[%clk 0:01:57.8]} 10... Bg4 {[%clk 0:02:25.2]} 11. Ng5
{[%clk 0:01:37.1]} 11... Qh6 {[%clk 0:01:54.6]} 12. Rxg8+ {[%clk 0:01:31.2]}
12... Rxg8 {[%clk 0:01:49.9]} 13. Qxg4 {[%clk 0:01:32.1]} 13... Ne5 {[%clk
0:01:39.2]} 14. Qf5 {[%clk 0:01:26.4]} 14... Rxg5 {[%clk 0:01:25.8]} 15. Bxg5
{[%clk 0:01:02.3]} 15... Bxc3+ {[%clk 0:01:10.1]} 16. bxc3 {[%clk 0:01:01.7]}
16... Qxg5 {[%clk 0:01:10.5]} 17. Qxg5 {[%clk 0:01:00.4]} 17... Nf3+ {[%clk
0:01:10.5]} 18. Ke2 {[%clk 0:01:01]} 18... Nxg5 {[%clk 0:01:11.4]} 19. Rg1
{[%clk 0:01:01.1]} 19... Ne6 {[%clk 0:01:00.8]} 20. Rg8+ {[%clk 0:01:01.2]}
20... Nf8 {[%clk 0:01:01.2]} 21. Bc4 {[%clk 0:00:57.1]} 21... Ke7 {[%clk
0:00:56.6]} 22. Rg7 {[%clk 0:00:54.8]} 22... Ne6 {[%clk 0:00:51.5]} 23. Bxe6
{[%clk 0:00:54.2]} 23... Kxe6 {[%clk 0:00:51.2]} 24. Rxh7 {[%clk 0:00:55.1]}
24... Rg8 {[%clk 0:00:48]} 25. h4 {[%clk 0:00:42.6]} 25... Rg1 {[%clk
0:00:44.6]} 26. Rh8 {[%clk 0:00:40.1]} 26... Ra1 {[%clk 0:00:39.8]} 27. Rc8
{[%clk 0:00:38.5]} 27... Kd7 {[%clk 0:00:39.1]} 28. Rf8 {[%clk 0:00:38]} 28...
Ke7 {[%clk 0:00:39.6]} 29. Rc8 {[%clk 0:00:38.1]} 29... Kd7 {[%clk 0:00:35.8]}
30. Rf8 {[%clk 0:00:38]} 30... Ke7 {[%clk 0:00:26.6]} 31. Rc8 {[%clk 0:00:36.1]}
31... Kd7 {[%clk 0:00:23.9]} 1/2-1/2

[Event "Late-Titled-Tuesday-Blitz-April-02-2024"]
[Site "Chess.com"]
[Date "2024.04.02"]
[Round "1"]
[White "ahkashefi2800"]
[Black "Yushko_Olga"]
[Result "1-0"]
[WhiteElo "2596"]
[BlackElo "2254"]
[TimeControl "180+1"]
[EndTime "14:06:22 PDT"]
[Termination "ahkashefi2800 won by resignation"]

1. d4 {[%clk 0:02:58.3]} 1... e6 {[%clk 0:02:59.1]} 2. Nf3 {[%clk 0:02:55]} 2...
d5 {[%clk 0:02:58.5]} 3. g3 {[%clk 0:02:51.5]} 3... Nf6 {[%clk 0:02:58.9]} 4.
Bg2 {[%clk 0:02:50.2]} 4... Be7 {[%clk 0:02:58.1]} 5. c4 {[%clk 0:02:50.8]} 5...
dxc4 {[%clk 0:02:58.3]} 6. O-O {[%clk 0:02:48.8]} 6... Nc6 {[%clk 0:02:55.9]} 7.
Qa4 {[%clk 0:02:46.2]} 7... O-O {[%clk 0:02:52.7]} 8. Qxc4 {[%clk 0:02:45.8]}
8... Bd7 {[%clk 0:02:52.5]} 9. Nc3 {[%clk 0:02:29.1]} 9... a6 {[%clk 0:02:52.6]}
10. Qd3 {[%clk 0:02:14.6]} 10... Nb4 {[%clk 0:02:51.1]} 11. Qd1 {[%clk
0:02:13.6]} 11... Bc6 {[%clk 0:02:49.4]} 12. a3 {[%clk 0:02:10.4]} 12... Nbd5
{[%clk 0:02:49]} 13. Qc2 {[%clk 0:02:10.3]} 13... Nxc3 {[%clk 0:02:40.6]} 14.
bxc3 {[%clk 0:02:08.4]} 14... b5 {[%clk 0:02:38.5]} 15. Bg5 {[%clk 0:01:57]}
15... Be4 {[%clk 0:02:36.7]} 16. Qa2 {[%clk 0:01:51.6]} 16... Bd5 {[%clk
0:02:31.6]} 17. Qc2 {[%clk 0:01:49.3]} 17... Ne4 {[%clk 0:02:03.4]} 18. Bxe7
{[%clk 0:01:41.2]} 18... Qxe7 {[%clk 0:02:04.3]} 19. Ne5 {[%clk 0:01:41.4]}
19... f6 {[%clk 0:01:59.6]} 20. Bxe4 {[%clk 0:01:40.2]} 20... fxe5 {[%clk
0:01:47.3]} 21. Bxh7+ {[%clk 0:01:35.4]} 21... Kh8 {[%clk 0:01:47.7]} 22. dxe5
{[%clk 0:01:35.5]} 22... Qg5 {[%clk 0:01:41.2]} 23. f4 {[%clk 0:01:32.8]} 23...
Qh5 {[%clk 0:01:40.8]} 24. Be4 {[%clk 0:01:32]} 24... c6 {[%clk 0:01:36.1]} 25.
Bf3 {[%clk 0:01:29]} 25... Qh6 {[%clk 0:01:33.3]} 26. Rad1 {[%clk 0:01:22.4]}
26... Rac8 {[%clk 0:01:18.7]} 27. Rf2 {[%clk 0:01:12.7]} 27... Rf5 {[%clk
0:01:12.3]} 28. Bxd5 {[%clk 0:01:07]} 28... cxd5 {[%clk 0:01:12.3]} 29. Rxd5
{[%clk 0:01:00.9]} 29... exd5 {[%clk 0:00:54.6]} 30. Qxf5 {[%clk 0:01:00.2]}
30... Rxc3 {[%clk 0:00:55.4]} 31. e6 {[%clk 0:00:51.9]} 31... Re3 {[%clk
0:00:53.5]} 32. e7 {[%clk 0:00:46.4]} 32... Qf6 {[%clk 0:00:48.7]} 33. e8=Q+
{[%clk 0:00:42.8]} 33... Rxe8 {[%clk 0:00:47.6]} 34. Qh5+ {[%clk 0:00:43]} 34...
Kg8 {[%clk 0:00:42.8]} 35. Qxe8+ {[%clk 0:00:43.9]} 35... Kh7 {[%clk 0:00:43.6]}
36. Qh5+ {[%clk 0:00:43.1]} 36... Kg8 {[%clk 0:00:43.7]} 37. Qxd5+ {[%clk
0:00:43.6]} 1-0

[Event "Late-Titled-Tuesday-Blitz-April-02-2024"]
[Site "Chess.com"]
[Date "2024.04.02"]
[Round "1"]
[White "SaqoChess_Twitch"]
[Black "Heliosis11"]
[Result "1-0"]
[WhiteElo "2694"]
[BlackElo "2393"]
[TimeControl "180+1"]
[EndTime "14:06:23 PDT"]
[Termination "SaqoChess_Twitch won by resignation"]

1. d4 {[%clk 0:02:56.7]} 1... Nf6 {[%clk 0:02:59.8]} 2. c4 {[%clk 0:02:55.4]}
2... e6 {[%clk 0:02:57.7]} 3. Nc3 {[%clk 0:02:55.4]} 3... Bb4 {[%clk 0:02:58.3]}
4. a3 {[%clk 0:02:54.7]} 4... Bxc3+ {[%clk 0:02:57.2]} 5. bxc3 {[%clk
0:02:55.6]} 5... c5 {[%clk 0:02:56.1]} 6. e3 {[%clk 0:02:55.6]} 6... O-O {[%clk
0:02:55.5]} 7. Bd3 {[%clk 0:02:53.8]} 7... d6 {[%clk 0:02:54.5]} 8. Ne2 {[%clk
0:02:53.6]} 8... Nc6 {[%clk 0:02:54.8]} 9. O-O {[%clk 0:02:52]} 9... e5 {[%clk
0:02:55.3]} 10. d5 {[%clk 0:02:52.3]} 10... Ne7 {[%clk 0:02:53.7]} 11. Ng3
{[%clk 0:02:52.7]} 11... a6 {[%clk 0:02:33.7]} 12. f4 {[%clk 0:02:52.5]} 12...
exf4 {[%clk 0:02:33.7]} 13. exf4 {[%clk 0:02:53.4]} 13... Ng6 {[%clk 0:02:32.1]}
14. f5 {[%clk 0:02:50.1]} 14... Ne5 {[%clk 0:02:32.1]} 15. Bg5 {[%clk
0:02:49.8]} 15... h6 {[%clk 0:02:31]} 16. Bh4 {[%clk 0:02:49.7]} 16... Neg4
{[%clk 0:01:40.7]} 17. Nh5 {[%clk 0:02:20.3]} 17... Re8 {[%clk 0:01:19.7]} 18.
h3 {[%clk 0:02:03.3]} 18... Ne5 {[%clk 0:01:16.6]} 19. Be2 {[%clk 0:01:42.8]}
19... Bd7 {[%clk 0:01:08.6]} 20. Qe1 {[%clk 0:01:36.7]} 20... Kh7 {[%clk
0:01:04.5]} 21. Bxf6 {[%clk 0:01:30.3]} 21... gxf6 {[%clk 0:01:04.7]} 22. Qh4
{[%clk 0:01:31]} 22... Rf8 {[%clk 0:00:56.1]} 23. Nxf6+ {[%clk 0:01:30]} 23...
Kg7 {[%clk 0:00:56.6]} 24. Nh5+ {[%clk 0:01:28.9]} 24... Kh7 {[%clk 0:00:57.1]}
25. f6 {[%clk 0:01:20.7]} 25... Ng6 {[%clk 0:00:52.7]} 26. Bd3 {[%clk 0:01:20]}
26... b5 {[%clk 0:00:41.2]} 27. cxb5 {[%clk 0:00:59.2]} 27... axb5 {[%clk
0:00:39.1]} 28. Nf4 {[%clk 0:00:54.7]} 28... c4 {[%clk 0:00:37.4]} 29. Nxg6
{[%clk 0:00:44.6]} 29... fxg6 {[%clk 0:00:34.9]} 30. Bxg6+ {[%clk 0:00:44.4]}
30... Kxg6 {[%clk 0:00:32]} 31. Qg3+ {[%clk 0:00:44.8]} 1-0